bitfinex-derivatives/quotes_ETHF0:USTF0_20250116
["timestamp","ask_amount","ask_price","bid_price","bid_amount"]
[1737054075478,6.16534251,3324.4,3323.6,3.2078]
[1737054075780,6.16534251,3324.4,3324.3,0.60172]
[1737054075781,3.80951,3324.4,3324.3,0.60172]
[1737054075982,3.2078,3324.4,3324.3,0.60172]
[1737054076370,0.60173,3324.3,3324.2,0.60173]
[1737054076575,0.60173,3324.3,3323.7,40.8]
[1737054076576,0.60173,3324.3,3324.1,0.60174]
[1737054076778,0.60172,3324.3,3323.7,40.8]
[1737054077082,6.16534251,3324.4,3323.6,3.2078]
[1737054077283,0.60179,3324.0,3323.9,0.60179]
[1737054077582,2.95754251,3324.1,3323.6,3.2078]
[1737054077884,1.50418,3324.6,3323.1,3.80973]
[1737054077885,0.60193,3323.2,3323.1,3.80973]
[1737054078270,0.60193,3323.2,3323.1,3.2078]
[1737054078473,0.60194,3323.2,3322.8,0.60199]
[1737054078682,0.60192,3323.2,3323.1,0.60192]
[1737054079178,2.95754251,3323.5,3322.7,3.4362]
[1737054079179,0.6019,3323.3,3323.2,0.60191]
[1737054080083,0.60193,3323.2,3323.1,0.60194]
[1737054080777,0.60191,3323.3,3323.2,0.60191]
[1737054080974,0.60193,3323.2,3323.1,0.60193]
[1737054081573,2.95754251,3323.2,3322.7,2.2112]
[1737054081776,0.60201,3322.8,3322.7,0.602]
[1737054082085,0.60201,3322.7,3322.6,3.80982]
[1737054082285,0.60203,3322.6,3322.4,0.60205]
[1737054082487,0.60205,3322.5,3322.4,0.60205]
[1737054082681,2.95754251,3322.9,3322.2,2.2561]
[1737054082984,0.60208,3322.4,3322.3,0.60208]
[1737054083377,2.95754251,3322.9,3322.2,2.2561]
[1737054083574,0.60208,3322.3,3322.2,2.2561]
[1737054083886,0.6021,3322.2,3322.1,3.2078]
[1737054084083,0.60217,3321.9,3321.8,0.60217]
[1737054084284,0.60215,3322.0,3321.9,0.60214]
[1737054084785,2.95754251,3322.3,3321.7,3.2078]
[1737054084786,0.60217,3321.8,3321.7,3.2078]
[1737054085086,0.60223,3321.6,3321.5,0.60222]
[1737054085484,2.95754251,3322.0,3321.3,1.225]
[1737054085778,2.95754251,3322.0,3321.3,0.60226]
[1737054085779,0.60225,3321.4,3321.3,0.60226]
[1737054086087,0.60225,3321.4,3321.2,3.2078]
[1737054086088,0.60226,3321.3,3321.2,3.2078]
[1737054088386,0.60236,3320.8,3320.7,3.2078]
[1737054088580,0.60241,3320.5,3320.4,43.59532]
[1737054088885,0.60241,3320.5,3320.4,2.1929]
[1737054089185,0.60241,3320.5,3320.4,2.79532]
[1737054089382,0.60234,3320.9,3320.8,0.60235]
[1737054089581,2.95754251,3321.2,3320.7,0.60236]
[1737054089890,0.60236,3320.8,3320.7,0.60236]
[1737054091390,2.95754251,3321.2,3320.4,2.1929]
[1737054091690,0.60237,3320.7,3320.6,0.60239]
[1737054091991,0.60239,3320.6,3320.5,0.6024]
[1737054092190,0.60241,3320.5,3320.4,2.1929]
[1737054092587,0.60241,3320.5,3320.4,2.79533]
[1737054093284,0.60241,3320.6,3320.5,0.60239]
[1737054093479,2.3445,3321.0,3320.4,2.1929]
[1737054093680,0.6024,3320.6,3320.5,0.6024]
[1737054093986,2.3445,3321.0,3320.4,2.1929]
[1737054094184,0.60238,3320.7,3320.6,0.60238]
[1737054094583,0.60236,3320.8,3320.7,0.60236]
[1737054095086,0.60235,3320.9,3320.8,0.60235]
[1737054095586,5.35084251,3321.2,3320.4,2.1929]
[1737054095990,0.6024,3320.6,3320.5,0.6024]
[1737054096186,0.6024,3320.6,3320.4,2.1929]
[1737054096187,5.35084251,3321.2,3320.4,2.1929]
[1737054096386,5.35084251,3321.2,3320.7,0.60236]
[1737054096387,0.60237,3320.8,3320.7,0.60236]
[1737054096596,0.60239,3320.7,3320.6,0.60238]
[1737054097092,0.60237,3320.8,3320.7,0.60236]
[1737054097582,0.60238,3320.7,3320.6,0.60238]
[1737054098389,0.60237,3320.8,3320.7,0.60236]
[1737054099989,2.2371,3321.7,3320.8,1.50589]
[1737054100194,2.2371,3321.7,3321.3,0.60224]
[1737054100195,0.60227,3321.4,3321.3,0.60224]
[1737054100391,0.60223,3321.5,3321.4,0.60222]
[1737054100587,0.60222,3321.6,3321.5,0.60221]
[1737054100890,2.95754251,3322.1,3321.3,2.2104]
[1737054101094,0.60215,3322.0,3321.9,0.60214]
[1737054101393,3.80992,3322.2,3322.1,0.60212]
[1737054101788,3.2078,3322.2,3322.1,0.60212]
[1737054101989,2.95754251,3322.7,3322.1,3.2078]
[1737054102293,0.60204,3322.6,3322.5,0.60203]
[1737054102883,0.60201,3322.8,3322.7,0.602]
[1737054103285,6.16534251,3323.3,3322.5,3.2078]
[1737054103499,0.60203,3322.7,3322.6,0.60202]
[1737054104191,2.1977,3323.5,3322.5,3.2078]
[1737054104395,2.1977,3323.5,3322.2,4.7201]
[1737054104396,0.60188,3323.4,3323.1,0.60192]
[1737054104593,0.6019,3323.3,3322.9,3.2078]
[1737054104791,0.6019,3323.3,3323.1,0.60193]
[1737054104991,0.60188,3323.5,3323.3,0.6019]
[1737054105192,0.60188,3323.4,3323.3,0.6019]
[1737054105394,2.95754251,3323.5,3322.9,3.2078]
[1737054105599,0.60193,3323.2,3323.0,0.60194]
[1737054105900,0.60192,3323.3,3323.0,0.60194]
[1737054106202,0.60193,3323.2,3323.0,0.60194]
[1737054106400,0.60196,3323.0,3322.9,3.2078]
[1737054107096,2.95754251,3323.2,3322.3,3.2078]
[1737054107295,2.95754251,3322.9,3322.3,3.2078]
[1737054107495,6.16534251,3322.9,3322.3,3.2078]
[1737054107799,0.60206,3322.4,3322.3,3.2078]
[1737054108099,6.16534251,3322.9,3322.3,3.80987]
[1737054108100,0.60206,3322.5,3322.3,3.80987]
[1737054108297,2.95754251,3322.6,3322.3,3.2078]
[1737054108493,2.95754251,3322.6,3322.2,2.4015]
[1737054108798,0.60208,3322.3,3322.2,2.4015]
[1737054109197,6.94219,3322.9,3322.2,2.4015]
[1737054109198,8.39474251,3322.9,3322.2,2.4015]
[1737054109403,0.60202,3322.7,3322.3,3.2078]
[1737054109601,2.2805,3323.1,3322.3,3.2078]
[1737054110104,0.60201,3322.7,3322.5,0.60203]
[1737054110297,0.60197,3323.0,3322.8,0.60198]
[1737054110598,0.60197,3322.9,3322.3,3.2078]
[1737054110799,0.60197,3322.9,3322.7,0.602]
[1737054111196,0.60199,3322.8,3322.7,0.602]
[1737054112904,0.60199,3322.8,3322.6,0.60202]
[1737054115101,0.60201,3322.7,3322.3,3.2078]
[1737054115300,2.2805,3323.1,3322.3,3.2078]
[1737054115507,0.60206,3322.4,3322.3,3.2078]
[1737054115708,0.60214,3322.0,3321.9,3.2078]
[1737054116394,0.60212,3322.2,3321.9,3.2078]
[1737054116599,0.60212,3322.2,3322.0,0.60212]
[1737054116801,2.3141,3322.4,3321.9,3.2078]
[1737054117003,0.60208,3322.3,3322.0,0.60212]
[1737054117299,2.3141,3322.4,3322.0,0.60212]
[1737054117495,2.3141,3322.4,3321.9,3.2078]
[1737054117496,3.93104,3322.7,3321.9,3.2078]
[1737054117699,2.426,3322.7,3321.9,3.2078]
[1737054117902,2.95754251,3322.8,3321.9,3.2078]
[1737054118108,2.2199,3322.9,3322.3,3.2078]
[1737054118300,0.60204,3322.6,3322.5,0.60203]
[1737054118495,5.23804251,3323.1,3322.6,0.60202]
[1737054118496,0.60201,3322.7,3322.6,0.60202]
[1737054118900,2.2805,3323.1,3322.4,3.5313]
[1737054119103,0.60204,3322.6,3322.5,0.60203]
[1737054119500,5.23804251,3323.1,3322.4,3.5313]
[1737054119798,0.60196,3323.0,3322.6,0.60201]
[1737054119999,2.88245,3323.1,3323.0,0.60196]
[1737054120198,0.60199,3322.9,3322.8,0.60198]
[1737054120399,0.60199,3322.9,3322.5,2.4289]
[1737054120400,0.60201,3322.8,3322.7,0.602]
[1737054120802,2.2805,3323.1,3322.6,40.8]
[1737054121003,0.60197,3323.0,3322.6,40.8]
[1737054121198,3.2078,3323.3,3322.9,3.2078]
[1737054121405,0.60186,3323.6,3323.4,0.60187]
[1737054121704,3.2078,3323.8,3323.3,1.224]
[1737054121905,0.60183,3323.7,3323.6,0.60183]
[1737054122302,0.60183,3323.7,3323.5,0.60185]
[1737054122504,3.2078,3323.8,3323.4,2.353]
[1737054122708,2.3665,3324.0,3323.6,3.2078]
[1737054122898,3.85012,3324.5,3323.6,3.2078]
[1737054123105,0.60183,3323.8,3323.7,0.60182]
[1737054123301,0.60183,3323.8,3323.7,0.60183]
[1737054123610,0.60183,3323.7,3323.6,3.80964]
[1737054123804,1.50435,3324.2,3323.6,3.80964]
[1737054123805,0.60172,3324.4,3324.2,0.60174]
[1737054124009,0.60169,3324.5,3324.4,0.6017]
[1737054124310,0.60168,3324.5,3324.4,3.8095]
[1737054124708,0.60168,3324.5,3324.4,3.2078]
[1737054126210,2.95754251,3324.9,3324.4,3.2078]
[1737054126406,2.189,3325.1,3324.4,3.2078]
[1737054126620,5.17954251,3325.8,3325.2,0.60155]
[1737054126820,5.17954251,3325.8,3325.1,0.60156]
[1737054127123,0.60155,3325.3,3325.0,0.60158]
[1737054127423,0.60157,3325.2,3325.0,0.60158]
[1737054127815,5.17954251,3325.8,3324.9,1.224]
[1737054128424,0.60156,3325.2,3325.0,0.60158]
[1737054129317,0.60156,3325.2,3324.9,1.224]
[1737054129318,5.17954251,3325.8,3324.9,1.224]
[1737054129618,0.60152,3325.5,3325.2,0.60154]
[1737054129823,5.17954251,3325.8,3325.1,0.60157]
[1737054130024,0.60154,3325.4,3325.0,0.60159]
[1737054130221,0.60155,3325.3,3325.1,0.60157]
[1737054130622,5.17954251,3325.8,3324.9,1.224]
[1737054130926,5.17954251,3325.8,3325.2,3.80935]
[1737054131226,0.60153,3325.4,3325.2,3.80935]
[1737054131725,5.17954251,3325.8,3325.2,3.2078]
[1737054131930,0.60154,3325.3,3325.2,3.2078]
[1737054134223,5.17954251,3325.8,3325.2,3.2078]
[1737054134621,0.6015,3325.6,3325.4,0.60151]
[1737054134930,0.60154,3325.3,3325.2,3.2078]
[1737054136728,1.50368,3325.7,3325.1,0.60157]
[1737054137128,0.60158,3325.1,3325.0,2.3877]
[1737054137325,0.60158,3325.1,3325.0,2.98929]
[1737054137525,3.2078,3325.6,3324.9,1.223]
[1737054137831,0.60159,3325.0,3324.9,1.223]
[1737054138330,0.60163,3324.8,3324.7,3.2078]
[1737054139725,0.60163,3324.8,3323.1,0.3008]
[1737054139726,8.46424251,3325.1,3324.1,1.223]
[1737054139927,6.16534251,3324.2,3323.7,4.7239]
[1737054140231,0.60188,3323.4,3323.3,3.2078]
[1737054141430,0.60194,3323.1,3323.0,1.82495]
[1737054141826,0.60194,3323.1,3323.0,1.223]
[1737054142035,1.50472,3323.4,3322.5,3.2078]
[1737054142036,3.2078,3323.4,3322.5,3.2078]
[1737054142329,0.602,3322.8,3322.7,0.602]
[1737054142731,1.50476,3323.3,3322.6,1.223]
[1737054142931,0.60201,3322.8,3322.7,0.602]
[1737054143828,0.602,3322.8,3322.7,0.602]
[1737054144031,1.50476,3323.3,3322.6,1.223]
[1737054144331,0.60199,3322.9,3322.8,0.60198]
[1737054144532,1.50476,3323.3,3322.7,0.602]
[1737054144533,0.602,3322.8,3322.7,0.602]
[1737054144929,0.60193,3323.2,3323.1,0.60193]
[1737054145127,0.60192,3323.2,3322.7,2.10703]
[1737054145328,0.60195,3323.1,3322.6,1.223]
[1737054145530,0.60195,3323.1,3323.0,0.60195]
[1737054146132,0.60193,3323.2,3323.1,0.60192]
[1737054146530,0.60193,3323.2,3323.1,41.40192]
[1737054146931,0.60193,3323.2,3323.1,40.8]
[1737054147135,0.60199,3322.8,3322.6,1.223]
[1737054147339,0.60199,3322.8,3322.7,0.602]
[1737054147541,0.60203,3322.6,3322.5,3.2078]
[1737054148136,0.602,3322.8,3322.6,0.60201]
[1737054148338,0.60203,3322.7,3322.5,3.80983]
[1737054148536,2.1956,3322.9,3322.5,3.2078]
[1737054148734,0.602,3322.8,3322.7,0.60201]
[1737054148930,0.60203,3322.6,3322.5,3.80984]
[1737054149537,0.60203,3322.6,3322.5,0.60204]
[1737054151340,2.1956,3322.9,3322.5,3.2078]
[1737054151536,0.60198,3322.9,3322.6,0.60203]
[1737054151734,0.60198,3322.9,3322.5,3.2078]
[1737054151932,2.3477,3323.3,3322.5,3.2078]
[1737054152133,2.3714,3323.5,3322.9,3.2078]
[1737054152339,0.60185,3323.6,3323.5,0.60185]
[1737054152545,3.2078,3323.8,3323.7,0.60183]
[1737054153139,5.6231,3324.7,3323.7,3.2078]
[1737054153338,0.60174,3324.3,3324.1,0.60174]
[1737054153547,5.6231,3324.7,3324.0,1.224]
[1737054153548,3.2078,3324.7,3324.0,1.224]
[1737054153849,0.60169,3324.5,3324.4,0.60169]
[1737054154441,2.95754251,3324.5,3324.0,1.224]
[1737054154740,3.2078,3324.7,3324.0,1.224]
[1737054154938,0.60171,3324.4,3324.3,0.60171]
[1737054155138,0.60164,3324.8,3324.7,0.60164]
[1737054155441,6.16534251,3325.2,3324.1,3.2078]
[1737054155442,0.60158,3325.1,3324.8,0.60161]
[1737054155644,3.2078,3325.2,3324.3,2.424]
[1737054155846,3.2078,3324.8,3324.1,5.5557]
[1737054156040,0.60176,3324.1,3324.0,0.60176]
[1737054156240,0.60173,3324.3,3324.2,0.60174]
[1737054156546,6.16534251,3325.2,3324.6,0.60165]
[1737054156741,2.95754251,3324.9,3324.3,3.02022]
[1737054157045,2.95754251,3324.9,3324.2,3.2078]
[1737054157046,2.95754251,3324.9,3324.5,0.60168]
[1737054157238,2.95754251,3324.9,3324.2,3.2078]
[1737054157652,2.95754251,3324.6,3323.8,4.4318]
[1737054157855,0.60176,3324.1,3323.9,0.60178]
[1737054158147,0.60177,3324.0,3323.9,0.60178]
[1737054158352,0.60178,3324.0,3323.9,0.60178]
[1737054158648,0.60177,3324.1,3324.0,0.60177]
[1737054159038,1.50435,3324.2,3323.8,3.2078]
[1737054159242,6.16534251,3324.3,3323.6,2.424]
[1737054159449,0.60183,3323.8,3323.7,0.60183]
[1737054159659,7.66969251,3324.3,3323.6,3.02584]
[1737054159660,0.60183,3323.7,3323.6,3.02584]
[1737054160551,0.60182,3323.8,3323.7,0.60182]
[1737054160853,3.2078,3324.3,3323.6,2.424]
[1737054161243,0.60178,3324.0,3323.9,0.60178]
[1737054161446,0.60176,3324.1,3324.0,0.60177]
[1737054161646,0.60178,3324.0,3323.9,0.60178]
[1737054162348,3.2078,3324.3,3323.6,2.424]
[1737054162549,0.60183,3323.7,3323.6,2.424]
[1737054163051,0.60185,3323.6,3323.5,0.60186]
[1737054163247,4.46189251,3324.2,3323.4,3.2078]
[1737054163552,0.60185,3323.7,3323.5,0.60186]
[1737054163743,3.2078,3323.9,3323.2,2.3117]
[1737054164045,2.2835,3324.5,3322.7,2.3488]
[1737054164046,2.95754251,3323.4,3322.7,2.3488]
[1737054164250,0.60201,3322.7,3322.6,3.2078]
[1737054164447,0.60203,3322.6,3322.4,1.223]
[1737054164747,0.60205,3322.5,3322.4,1.223]
[1737054165152,0.60205,3322.5,3322.4,1.82506]
[1737054165455,0.60205,3322.5,3322.4,1.223]
[1737054165951,0.60206,3322.5,3322.3,0.60207]
[1737054166449,0.60206,3322.4,3322.3,0.60207]
[1737054166753,0.60205,3322.5,3322.4,0.60205]
[1737054166952,6.16534251,3323.1,3322.2,3.2078]
[1737054167251,0.60206,3322.5,3322.4,0.60206]
[1737054167455,1.5049,3323.0,3322.2,3.2078]
[1737054167659,0.60198,3322.9,3322.8,0.60198]
[1737054167858,0.602,3322.8,3322.7,0.602]
[1737054168152,3.2078,3323.5,3322.7,3.2078]
[1737054168455,0.60195,3323.1,3323.0,0.60195]
[1737054169045,0.60191,3323.3,3323.2,0.60191]
[1737054169659,0.60191,3323.3,3323.2,41.40191]
[1737054169858,0.60189,3323.4,3323.3,0.60189]
[1737054170252,0.60191,3323.3,3323.2,0.60191]
[1737054170554,2.2516,3323.8,3323.4,0.60187]
[1737054171060,2.2516,3323.8,3323.3,0.60188]
[1737054171061,0.60189,3323.4,3323.3,0.60188]
[1737054171251,0.60187,3323.5,3323.4,0.60187]
[1737054171452,0.60184,3323.7,3323.6,0.60184]
[1737054171652,0.60182,3323.8,3323.7,0.60182]
[1737054171854,0.60182,3323.8,3323.1,44.0078]
[1737054171855,3.2078,3323.9,3323.1,44.0078]
[1737054172050,3.2078,3323.9,3323.5,3.2078]
[1737054172360,0.60183,3323.7,3323.6,0.60185]
[1737054172654,0.60185,3323.6,3323.5,3.80966]
[1737054173357,0.60192,3323.2,3323.1,44.0078]
[1737054173554,0.60192,3323.2,3323.1,3.2078]
[1737054173761,2.406,3323.6,3323.1,3.2078]
[1737054173965,0.60192,3323.3,3323.2,0.6019]
[1737054174159,0.60188,3323.5,3323.4,0.60188]
[1737054174363,0.60187,3323.5,3323.4,0.60187]
[1737054175459,0.60189,3323.4,3323.3,0.60189]
[1737054176665,3.2078,3323.9,3323.1,3.2078]
[1737054177061,6.16534251,3323.9,3323.1,3.2078]
[1737054177255,1.50453,3323.8,3323.1,3.2078]
[1737054177459,0.60189,3323.4,3323.3,0.60189]
[1737054177763,6.16534251,3323.9,3323.1,3.2078]
[1737054177963,3.2078,3323.9,3323.2,1.50481]
[1737054178166,3.2078,3323.9,3323.3,2.292]
[1737054178460,6.16534251,3323.9,3323.3,2.292]
[1737054178768,7.66986251,3323.9,3323.3,2.292]
[1737054178964,0.60187,3323.5,3323.4,0.60187]
[1737054180271,2.95754251,3323.9,3323.3,2.292]
[1737054180466,0.60177,3324.1,3324.0,0.60176]
[1737054180969,5.6138,3324.4,3323.7,3.543]
[1737054180970,2.406,3324.4,3323.7,3.543]
[1737054181265,2.3873,3324.5,3323.7,3.543]
[1737054181266,4.66055597,3324.7,3324.0,3.2078]
[1737054181466,0.60168,3324.5,3324.4,3.80949]
[1737054181862,7.03645597,3325.0,3324.4,3.2078]
[1737054182163,4.66055597,3325.0,3324.9,0.60161]
[1737054182564,5.26214597,3325.0,3324.9,0.60161]
[1737054182765,0.60159,3325.1,3324.8,3.2078]
[1737054182964,0.60159,3325.1,3325.0,0.60159]
[1737054183372,0.6016,3325.0,3324.9,0.60159]
[1737054183669,7.06085597,3325.5,3324.8,3.2078]
[1737054183972,0.60159,3325.1,3325.0,0.60158]
[1737054184366,0.60159,3325.1,3324.8,3.2078]
[1737054184367,0.60161,3324.9,3324.8,3.2078]
[1737054184773,0.60166,3324.7,3324.6,0.60165]
[1737054184965,0.60168,3324.5,3324.4,4.4308]
[1737054185269,0.60168,3324.5,3324.4,5.0325]
[1737054185570,0.60168,3324.5,3324.4,4.4308]
[1737054185775,0.60175,3324.2,3324.1,0.60174]
[1737054186069,0.60169,3324.5,3324.4,0.60168]
[1737054186263,0.60173,3324.3,3324.1,0.60176]
[1737054186469,0.60173,3324.3,3324.2,0.60174]
[1737054187067,0.60179,3324.0,3323.9,0.60178]
[1737054187471,1.50426,3324.4,3323.8,1.223]
[1737054187664,0.60176,3324.2,3324.1,0.60175]
[1737054188170,0.60177,3324.1,3324.0,0.60177]
[1737054188563,3.2078,3324.5,3324.0,3.2078]
[1737054188969,0.60176,3324.2,3324.1,0.60175]
[1737054189370,2.338,3324.7,3324.0,3.2078]
[1737054189573,0.6017,3324.5,3324.4,0.60169]
[1737054190570,0.60169,3324.5,3324.4,0.60169]
[1737054190973,2.338,3324.7,3324.0,3.2078]
[1737054191162,0.60176,3324.1,3324.0,3.80957]
[1737054191567,0.60176,3324.1,3324.0,3.2078]
[1737054191874,0.60183,3323.7,3323.6,3.2078]
[1737054192175,0.60185,3323.6,3323.5,4.70283173]
[1737054192377,5.10995,3323.6,3323.5,4.70283173]
[1737054192674,8.31775,3323.6,3323.5,4.70283173]
[1737054193073,8.31775,3323.6,3322.9,3.2078]
[1737054193074,0.60196,3323.0,3322.9,3.2078]
[1737054193372,6.16534251,3323.2,3322.7,4.70283173]
[1737054193572,0.60199,3322.8,3322.7,4.70283173]
[1737054194170,0.60199,3322.8,3322.6,0.60202]
[1737054194374,0.60196,3323.0,3322.9,0.60196]
[1737054194572,3.2078,3323.2,3323.1,0.60194]
[1737054194876,0.60185,3323.6,3323.0,1.223]
[1737054195075,0.60182,3323.8,3323.2,3.2078]
[1737054195275,0.60182,3323.8,3323.7,0.60183]
[1737054195466,4.66055597,3323.9,3323.2,3.2078]
[1737054195673,2.397,3324.1,3323.6,3.2078]
[1737054195972,0.60173,3324.3,3323.6,3.2078]
[1737054196178,0.60174,3324.2,3324.1,0.60175]
[1737054196875,4.7119,3324.8,3324.2,0.60172]
[1737054197077,1.50398,3325.1,3324.0,3.2078]
[1737054197275,1.50398,3325.1,3324.0,4.4308]
[1737054197578,0.6017,3324.4,3324.3,0.60171]
[1737054197771,0.60165,3324.7,3324.6,0.60166]
[1737054197971,0.60166,3324.7,3324.5,0.60167]
[1737054198171,0.60166,3324.7,3324.4,3.2078]
[1737054198379,0.60166,3324.7,3324.5,0.60167]
[1737054198571,0.60166,3324.7,3324.4,3.2078]
[1737054199067,4.6162,3325.0,3324.4,3.2078]
[1737054199272,0.60162,3324.9,3324.4,3.2078]
[1737054199473,4.6162,3325.0,3324.4,3.2078]
[1737054199678,0.60158,3325.1,3324.5,2.2574]
[1737054199879,0.60158,3325.1,3325.0,0.60159]
[1737054200271,3.80936,3325.2,3325.1,0.60158]
[1737054200672,3.80936,3325.2,3324.6,1.50417]
[1737054200978,3.80936,3325.2,3325.1,0.60158]
[1737054201174,0.60159,3325.1,3324.6,0.60167]
[1737054201480,0.60162,3324.9,3324.5,2.2574]
[1737054201775,0.6016,3325.0,3324.9,0.6016]
[1737054201978,0.60162,3324.9,3324.8,0.60162]
[1737054202473,3.2078,3325.2,3324.5,2.2574]
[1737054202677,7.44934251,3325.6,3324.0,3.2078]
[1737054202678,2.95754251,3324.7,3324.0,3.2078]
[1737054202874,2.1881,3324.6,3323.9,4.71100758]
[1737054203080,4.5286,3324.6,3323.9,4.71100758]
[1737054203280,0.60168,3324.5,3323.9,4.71100758]
[1737054203573,0.60166,3324.7,3324.0,1.50444]
[1737054203780,3.2078,3324.8,3324.0,1.50444]
[1737054203973,6.16534251,3325.3,3324.1,1.5044]
[1737054204178,6.16534251,3325.3,3324.0,6.16534251]
[1737054204179,3.2078,3325.3,3324.4,3.2078]
[1737054204379,0.60156,3325.2,3325.0,0.60158]
[1737054204774,0.60156,3325.2,3325.0,0.60159]
[1737054205172,0.60153,3325.4,3324.8,3.2078]
[1737054205371,2.1881,3325.7,3325.6,0.60148]
[1737054205577,5.28914422,3325.9,3325.8,0.60145]
[1737054205578,4.68771422,3325.9,3325.8,0.60145]
[1737054206479,4.68771422,3325.9,3325.4,2.72681]
[1737054206480,0.60139,3326.2,3326.0,0.6014]
[1737054206687,2.3311,3326.3,3325.9,0.60143]
[1737054206877,0.60141,3326.1,3325.9,0.60143]
[1737054207181,2.3311,3326.3,3326.0,0.6014]
[1737054207383,2.3311,3326.3,3326.1,3.2078]
[1737054207583,3.2078,3326.8,3326.1,3.2078]
[1737054207883,0.60129,3326.7,3326.4,0.60132]
[1737054208486,0.60129,3326.7,3326.5,0.60131]
[1737054208687,3.2078,3326.8,3326.2,3.4138]
[1737054208986,0.60131,3326.6,3326.4,0.60134]
[1737054209485,0.60134,3326.4,3326.2,4.01517]
[1737054209684,0.60138,3326.2,3326.1,4.4308]
[1737054209885,0.60136,3326.3,3326.1,5.03219]
[1737054210285,0.60138,3326.2,3326.1,5.03219]
[1737054210787,3.2078,3326.8,3326.1,4.4308]
[1737054210986,0.60137,3326.3,3326.2,0.60138]
[1737054211385,0.60135,3326.4,3326.3,0.60136]
[1737054211785,3.2078,3326.8,3326.1,4.4308]
[1737054211985,0.60134,3326.4,3326.3,0.60135]
[1737054212191,0.60133,3326.5,3326.4,0.60133]
[1737054212382,3.2078,3326.8,3326.4,0.60133]
[1737054212579,3.80907,3326.8,3326.7,0.60129]
[1737054212785,5.5994,3326.8,3326.1,4.4298]
[1737054212990,5.5994,3326.8,3326.2,2.3868]
[1737054213192,2.3916,3326.8,3326.2,2.3868]
[1737054213503,0.60132,3326.6,3326.5,0.60132]
[1737054213799,2.3916,3326.8,3326.6,0.6013]
[1737054213800,0.6013,3326.7,3326.6,0.6013]
[1737054214199,0.60131,3326.6,3326.5,0.60131]
[1737054216202,0.6013,3326.7,3326.6,0.6013]
[1737054216405,0.60132,3326.6,3326.5,0.60131]
[1737054218308,2.3916,3326.8,3326.1,3.2078]
[1737054218604,0.60138,3326.2,3326.1,3.80919]
[1737054219001,2.95754251,3326.3,3325.7,3.2078]
[1737054219202,0.60147,3325.8,3325.7,3.80926]
[1737054219502,0.60145,3325.9,3325.8,0.60144]
[1737054220100,4.4767,3326.5,3325.7,3.2078]
[1737054220502,0.6014,3326.2,3326.1,0.60138]
[1737054221710,4.4767,3326.5,3325.7,4.71145]
[1737054221915,0.60141,3326.1,3326.0,0.6014]
[1737054222504,5.98004,3326.5,3325.7,3.2078]
[1737054222808,0.60142,3326.1,3326.0,0.60141]
[1737054223110,4.4767,3326.5,3325.7,3.2078]
[1737054223314,0.60137,3326.3,3326.2,0.60137]
[1737054223612,2.2312,3326.5,3325.7,3.2078]
[1737054223812,1.50336,3326.4,3325.7,3.2078]
[1737054224008,1.50363,3325.8,3325.3,3.2078]
[1737054224306,0.60161,3324.9,3324.8,10.0871814]
[1737054224506,0.60161,3324.9,3324.8,7.4810114]
[1737054225005,0.60161,3324.9,3324.8,4.6908814]
[1737054225406,2.95754251,3325.0,3324.4,0.60169]
[1737054225712,0.6017,3324.4,3324.3,0.60171]
[1737054225910,1.50404,3324.9,3323.9,45.2298]
[1737054226109,0.60171,3324.4,3324.3,0.60171]
[1737054226414,1.50404,3324.9,3323.9,45.2298]
[1737054226612,0.60169,3324.5,3324.4,0.6017]
[1737054227207,0.6017,3324.4,3324.3,0.60171]
[1737054227402,0.60163,3324.8,3324.2,0.60172]
[1737054227608,2.2227,3324.8,3324.0,5.669]
[1737054227911,0.6017,3324.5,3324.4,0.60169]
[1737054228113,0.6017,3324.4,3324.3,0.60171]
[1737054228811,2.2227,3324.8,3324.0,5.669]
[1737054229014,2.3793,3325.1,3324.5,3.2078]
[1737054229216,0.60158,3325.1,3325.0,0.60158]
[1737054229719,7.61824251,3325.6,3324.6,1.50417]
[1737054230014,4.6607,3325.6,3325.0,40.8]
[1737054230217,5.26219,3325.6,3325.5,0.6015]
[1737054230509,0.60152,3325.4,3325.3,3.80933]
[1737054230708,2.3854,3325.6,3325.3,3.2078]
[1737054230911,3.2078,3325.7,3325.6,0.60148]
[1737054231309,3.80927,3325.7,3325.6,0.60148]
[1737054231512,0.60146,3325.8,3325.6,0.60148]
[1737054232007,0.60146,3325.8,3325.7,0.60147]
[1737054232715,0.60143,3325.9,3325.4,2.1741]
[1737054232915,3.2078,3326.1,3326.0,0.60141]
[1737054233108,0.60143,3326.0,3325.9,0.60142]
[1737054233310,3.2078,3326.1,3325.7,1.222]
[1737054233510,0.60144,3325.9,3325.8,0.60144]
[1737054234017,0.60142,3326.0,3325.9,0.60142]
[1737054234316,0.60144,3325.9,3325.8,0.60144]
[1737054234515,3.2078,3326.1,3325.7,1.222]
[1737054234819,0.60142,3326.0,3325.9,0.60142]
[1737054235010,3.2078,3326.1,3325.7,1.222]
[1737054235210,0.60144,3325.9,3325.8,0.60144]
[1737054236020,3.2078,3326.1,3325.7,1.222]
[1737054236212,3.80921,3326.1,3325.7,1.222]
[1737054236411,3.2078,3326.1,3325.7,1.222]
[1737054236812,0.60144,3325.9,3325.8,0.60143]
[1737054237109,0.6014,3326.1,3326.0,0.60141]
[1737054237515,4.7111,3326.6,3325.7,4.4298]
[1737054237516,3.2078,3326.6,3325.7,4.4298]